[Event "Torneo Benidorm Gran Hotel Bali 2022"]
[Site "Benidorm, Spain"]
[Date "2022.12.08"]
[Round "7.11"]
[White "Centeno Mendoza, Julio Stefano"]
[Black "Pastor Villalba, Arturo"]
[Result "1-0"]
[ECO "C41"]
[WhiteElo "2099"]
[BlackElo "1789"]
[PlyCount "87"]
[EventDate "2022.12.03"]
[EventType "swiss"]
[EventRounds "9"]
[SourceTitle "Ajedrez en Madrid"]
[Source "lmi"]
[SourceDate "2022.12.03"]
[SourceVersion "1"]
[SourceVersionDate "2022.12.10"]
[SourceQuality "1"]
[TimeControl "90+30"]
[WhiteClock "0:10:00"]
[BlackClock "0:16:01"]

1. e4 {[%emt 0:00:00]} d6 {[%emt 0:00:00]} 2. d4 {[%emt 0:00:00]} Nf6 {[%emt 0:00:00]} 3. Nc3 {[%emt 0:00:00]} e5 {[%emt 0:00:00]} 4. Nf3 {[%emt 0:00:00]} Nbd7 {[%emt 0:00:00]} 5. Bc4 {[%emt 0:00:00]} Be7 {[%emt 0:00:00]} 6. O-O {[%emt 0:00:00]} O-O {[%emt 0:00:00]} 7. Qe2 {[%emt 0:00:00]} c6 {[%emt 0:00:00]} 8. a4 {[%emt 0:00:00]} Qc7 {[%emt 0:00:00]} 9. Rd1 {[%emt 0:00:00]} h6 {[%emt 0:00:00]} 10. h3 {[%emt 0:00:00]} Re8 {[%emt 0:00:00]} 11. Ba2 {[%emt 0:00:00]} Nf8 {[%emt 0:00:00]} 12. Kh2 {[%emt 0:00:00]} Ne6 {[%emt 0:00:00]} 13. g3 {[%emt 0:00:00]} exd4 {[%emt 0:00:00]} 14. Nxd4 {[%emt 0:00:00]} Bf8 {[%emt 0:00:00]} 15. Nxe6 {[%emt 0:00:00]} Bxe6 {[%emt 0:00:00]} 16. Qd3 {[%emt 0:00:00]} Bxa2 {[%emt 0:00:00]} 17. Rxa2 {[%emt 0:00:00]} Nd7 {[%emt 0:00:00]} 18. Be3 {[%emt 0:00:00]} Re6 {[%emt 0:00:00]} 19. b3 {[%emt 0:00:00]} Ne5 {[%emt 0:00:00]} 20. Qe2 {[%emt 0:00:00]} Qa5 {[%emt 0:00:00]} 21. Bd4 {[%emt 0:00:00]} Nd7 {[%emt 0:00:00]} 22. Qd2 {[%emt 0:00:00]} Nc5 {[%emt 0:00:00]} 23. f3 {[%emt 0:00:00]} Nd7 {[%emt 0:00:00]} 24. Ne2 {[%emt 0:00:00]} Qxd2 {[%emt 0:00:00]} 25. Rxd2 {[%emt 0:00:00]} Ne5 {[%emt 0:00:00]} 26. Kg2 {[%emt 0:00:00]} Ree8 {[%emt 0:00:00]} 27. Ra1 {[%emt 0:00:00]} b6 {[%emt 0:00:00]} 28. Rad1 {[%emt 0:00:00]} Nd7 {[%emt 0:00:00]} 29. Bb2 {[%emt 0:00:00]} Nc5 {[%emt 0:00:00]} 30. Nd4 {[%emt 0:00:00]} Rac8 {[%emt 0:00:00]} 31. c4 {[%emt 0:00:00]} g6 {[%emt 0:00:00]} 32. Ba3 {[%emt 0:00:00]} d5 {[%emt 0:00:00]} 33. exd5 {[%emt 0:03:05]} cxd5 {[%emt 0:00:00]} 34. cxd5 {[%emt 0:05:01]} Nxb3 {[%emt 0:00:00]} 35. Nxb3 {[%emt 0:00:04]} Bxa3 {[%emt 0:00:00]} 36. Nd4 {[%emt 0:00:44]} Bb4 {[%emt 0:01:25]} 37. Re2 {[%emt 0:00:29]} Rxe2+ {[%emt 0:00:51]} 38. Nxe2 {[%emt 0:00:05]} Rc2 {[%emt 0:00:24]} 39. Kf1 {[%emt 0:00:06]} Bd6 {[%emt 0:00:36]} 40. f4 {[%emt 0:02:13]} Kf8 {[%emt 0:01:11]} 41. Nd4 {[%emt 0:01:09]} Rc4 {[%emt 0:00:53]} 42. Nb5 {[%emt 0:00:12]} Ke7 {[%emt 0:00:43]} 43. Nxa7 {[%emt 0:00:09]} Rxa4 {[%emt 0:00:56]} 44. Nc8+ {[%emt 0:00:13]} 1-0

[Event "Torneo Benidorm Gran Hotel Bali 2022"]
[Site "Benidorm, Spain"]
[Date "2022.12.08"]
[Round "7.12"]
[White "Pallardo Lozoya, Jose Vicente"]
[Black "Rubio Tapia, Jose Juan"]
[Result "1-0"]
[ECO "C43"]
[WhiteElo "2367"]
[BlackElo "2079"]
[PlyCount "73"]
[EventDate "2022.12.03"]
[EventType "swiss"]
[EventRounds "9"]
[SourceTitle "Ajedrez en Madrid"]
[Source "lmi"]
[SourceDate "2022.12.03"]
[SourceVersion "1"]
[SourceVersionDate "2022.12.10"]
[SourceQuality "1"]
[TimeControl "90+30"]
[WhiteClock "0:03:35"]
[BlackClock "0:01:00"]

1. e4 {[%emt 0:00:00]} e5 {[%emt 0:00:00]} 2. d4 {[%emt 0:00:00]} exd4 {[%emt 0:00:00]} 3. Nf3 {[%emt 0:00:00]} Nf6 {[%emt 0:00:00]} 4. e5 {[%emt 0:00:00]} Ne4 {[%emt 0:00:00]} 5. Qxd4 {[%emt 0:00:00]} d5 {[%emt 0:00:00]} 6. exd6 {[%emt 0:00:00]} Nxd6 {[%emt 0:00:00]} 7. Nc3 {[%emt 0:00:00]} Nc6 {[%emt 0:00:00]} 8. Qf4 {[%emt 0:00:00]} Nf5 {[%emt 0:00:00]} 9. Bb5 {[%emt 0:00:00]} Bd6 {[%emt 0:00:00]} 10. Qe4+ {[%emt 0:00:00]} Nfe7 {[%emt 0:00:00]} 11. Bg5 {[%emt 0:00:00]} f6 {[%emt 0:00:00]} 12. Bh4 {[%emt 0:00:00]} O-O {[%emt 0:00:00]} 13. O-O-O {[%emt 0:00:00]} Kh8 {[%emt 0:00:00]} 14. Rhe1 {[%emt 0:00:00]} Bf5 {[%emt 0:00:00]} 15. Qe2 {[%emt 0:00:00]} Qe8 {[%emt 0:00:00]} 16. Bg3 {[%emt 0:00:00]} Bxg3 {[%emt 0:00:00]} 17. hxg3 {[%emt 0:00:00]} Rd8 {[%emt 0:00:00]} 18. Nh4 {[%emt 0:00:00]} Bc8 {[%emt 0:00:00]} 19. Rxd8 {[%emt 0:00:46]} Qxd8 {[%emt 0:00:00]} 20. Bxc6 {[%emt 0:00:13]} Nxc6 {[%emt 0:00:00]} 21. Ng6+ {[%emt 0:00:13]} hxg6 {[%emt 0:00:00]} 22. Qc4 {[%emt 0:00:05]} Bg4 {[%emt 0:00:52]} 23. Qxg4 {[%emt 0:00:02]} Ne5 {[%emt 0:03:46]} 24. Qe6 {[%emt 0:01:31]} Nf7 {[%emt 0:01:40]} 25. Rd1 {[%emt 0:03:18]} Qe8 {[%emt 0:00:56]} 26. Qxe8 {[%emt 0:00:29]} Rxe8 {[%emt 0:00:02]} 27. Rd7 {[%emt 0:00:07]} Nd6 {[%emt 0:01:58]} 28. Rxc7 {[%emt 0:00:18]} Re1+ {[%emt 0:00:43]} 29. Kd2 {[%emt 0:00:23]} Rg1 {[%emt 0:00:46]} 30. Ke2 {[%emt 0:04:13]} Rxg2 {[%emt 0:01:09]} 31. Rd7 {[%emt 0:01:21]} Nc4 {[%emt 0:02:14]} 32. Rxb7 {[%emt 0:00:20]} a5 {[%emt 0:00:46]} 33. Rb5 {[%emt 0:00:39]} Rh2 {[%emt 0:01:02]} 34. Nd1 {[%emt 0:00:33]} Kg8 {[%emt 0:01:54]} 35. Rc5 {[%emt 0:00:23]} Nd6 {[%emt 0:00:24]} 36. Rxa5 {[%emt 0:00:16]} Nf5 {[%emt 0:00:18]} 37. Ra3 {[%emt 0:01:15]} 1-0

[Event "Torneo Benidorm Gran Hotel Bali 2022"]
[Site "Benidorm, Spain"]
[Date "2022.12.08"]
[Round "7.13"]
[White "Yuste Valenzuela, Alejandro"]
[Black "Oswaldo Valentin, Requejo Cotrin"]
[Result "0-1"]
[ECO "B70"]
[WhiteElo "2089"]
[BlackElo "2248"]
[PlyCount "160"]
[EventDate "2022.12.03"]
[EventType "swiss"]
[EventRounds "9"]
[SourceTitle "Ajedrez en Madrid"]
[Source "lmi"]
[SourceDate "2022.12.03"]
[SourceVersion "1"]
[SourceVersionDate "2022.12.10"]
[SourceQuality "1"]
[TimeControl "90+30"]
[WhiteClock "0:06:53"]
[BlackClock "0:10:24"]

1. e4 {[%emt 0:00:00]} c5 {[%emt 0:00:00]} 2. Nf3 {[%emt 0:00:00]} d6 {[%emt 0:00:00]} 3. d4 {[%emt 0:00:00]} cxd4 {[%emt 0:00:00]} 4. Nxd4 {[%emt 0:00:00]} Nf6 {[%emt 0:00:00]} 5. Nc3 {[%emt 0:00:00]} g6 {[%emt 0:00:00]} 6. g3 {[%emt 0:00:00]} Nc6 {[%emt 0:00:00]} 7. Nde2 {[%emt 0:00:00]} Bg7 {[%emt 0:00:00]} 8. Bg2 {[%emt 0:00:00]} O-O {[%emt 0:00:00]} 9. O-O {[%emt 0:00:00]} Rb8 {[%emt 0:00:00]} 10. a4 {[%emt 0:00:00]} a6 {[%emt 0:00:00]} 11. h3 {[%emt 0:00:00]} b5 {[%emt 0:00:00]} 12. axb5 {[%emt 0:00:00]} axb5 {[%emt 0:00:00]} 13. Be3 {[%emt 0:00:00]} b4 {[%emt 0:00:00]} 14. Nd5 {[%emt 0:00:00]} Nd7 {[%emt 0:00:00]} 15. Nd4 {[%emt 0:00:00]} Nde5 {[%emt 0:00:00]} 16. f4 {[%emt 0:00:00]} Nxd4 {[%emt 0:00:00]} 17. Bxd4 {[%emt 0:00:00]} Nc6 {[%emt 0:00:00]} 18. Bxg7 {[%emt 0:00:00]} Kxg7 {[%emt 0:00:00]} 19. Kh2 {[%emt 0:00:00]} e6 {[%emt 0:00:00]} 20. Ne3 {[%emt 0:00:00]} Qb6 {[%emt 0:00:00]} 21. Nc4 {[%emt 0:00:00]} Qc5 {[%emt 0:00:00]} 22. Nxd6 {[%emt 0:00:00]} Nd4 {[%emt 0:00:00]} 23. e5 {[%emt 0:00:00]} Nxc2 {[%emt 0:00:00]} 24. Ne4 {[%emt 0:00:00]} Qc7 {[%emt 0:00:00]} 25. Rc1 {[%emt 0:00:00]} b3 {[%emt 0:00:00]} 26. Qd2 {[%emt 0:00:00]} Bb7 {[%emt 0:00:00]} 27. f5 {[%emt 0:00:00]} exf5 {[%emt 0:00:00]} 28. Rxf5 {[%emt 0:06:57]} Qd8 {[%emt 0:01:52]} 29. Rf2 {[%emt 0:02:29]} Qxd2 {[%emt 0:02:09]} 30. Rxd2 {[%emt 0:01:12]} Ne3 {[%emt 0:03:11]} 31. Bh1 {[%emt 0:00:25]} Rfc8 {[%emt 0:02:02]} 32. Nc5 {[%emt 0:05:46]} Rxc5 {[%emt 0:01:41]} 33. Rxc5 {[%emt 0:00:04]} Nf1+ {[%emt 0:00:06]} 34. Kg1 {[%emt 0:00:02]} Nxd2 {[%emt 0:00:42]} 35. Rb5 {[%emt 0:00:03]} Bxh1 {[%emt 0:01:38]} 36. Rxb8 {[%emt 0:00:02]} Be4 {[%emt 0:01:11]} 37. Kf2 {[%emt 0:00:26]} Bc2 {[%emt 0:00:50]} 38. Rc8 {[%emt 0:00:02]} Ne4+ {[%emt 0:00:22]} 39. Kg2 {[%emt 0:00:15]} Ng5 {[%emt 0:02:01]} 40. h4 {[%emt 0:00:20]} Ne6 {[%emt 0:00:11]} 41. Kf2 {[%emt 0:00:30]} h5 {[%emt 0:01:54]} 42. Ke3 {[%emt 0:00:49]} f6 {[%emt 0:00:32]} 43. exf6+ {[%emt 0:00:49]} Kxf6 {[%emt 0:00:05]} 44. Kf2 {[%emt 0:00:26]} Ke5 {[%emt 0:00:50]} 45. Ke3 {[%emt 0:00:15]} Kd5 {[%emt 0:00:25]} 46. Ra8 {[%emt 0:03:02]} Nc5 {[%emt 0:00:34]} 47. Ra7 {[%emt 0:00:34]} Ne4 {[%emt 0:00:51]} 48. Ra5+ {[%emt 0:00:14]} Ke6 {[%emt 0:00:12]} 49. Kf4 {[%emt 0:00:19]} Nf2 {[%emt 0:00:30]} 50. Ra6+ {[%emt 0:00:48]} Kd5 {[%emt 0:00:42]} 51. Kg5 {[%emt 0:00:37]} Nd1 {[%emt 0:00:20]} 52. g4 {[%emt 0:00:06]} hxg4 {[%emt 0:00:20]} 53. Kxg4 {[%emt 0:00:05]} Nxb2 {[%emt 0:00:09]} 54. Rb6 {[%emt 0:00:03]} Nc4 {[%emt 0:00:23]} 55. Rxb3 {[%emt 0:00:13]} Bxb3 {[%emt 0:00:20]} 56. Kg5 {[%emt 0:00:11]} Ne5 {[%emt 0:00:15]} 57. h5 {[%emt 0:00:04]} gxh5 {[%emt 0:00:04]} 58. Kxh5 {[%emt 0:00:06]} Bd1+ {[%emt 0:00:32]} 59. Kh6 {[%emt 0:00:40]} Ke6 {[%emt 0:00:06]} 60. Kg7 {[%emt 0:00:11]} Ke7 {[%emt 0:00:15]} 61. Kh8 {[%emt 0:01:08]} Kf6 {[%emt 0:00:26]} 62. Kh7 {[%emt 0:00:09]} Bc2+ {[%emt 0:00:08]} 63. Kg8 {[%emt 0:00:19]} Nf7 {[%emt 0:00:20]} 64. Kf8 {[%emt 0:00:18]} Bh7 {[%emt 0:00:05]} 65. Ke8 {[%emt 0:00:12]} Ne5 {[%emt 0:00:06]} 66. Kd8 {[%emt 0:00:19]} Be4 {[%emt 0:01:03]} 67. Kc7 {[%emt 0:00:17]} Nc4 {[%emt 0:00:14]} 68. Kd7 {[%emt 0:00:46]} Kf7 {[%emt 0:00:09]} 69. Kd8 {[%emt 0:00:20]} Bc6 {[%emt 0:00:07]} 70. Kc7 {[%emt 0:00:06]} Bb5 {[%emt 0:00:06]} 71. Kd8 {[%emt 0:00:23]} Kf8 {[%emt 0:00:08]} 72. Kc7 {[%emt 0:00:24]} Ke7 {[%emt 0:00:07]} 73. Kc8 {[%emt 0:00:04]} Ne3 {[%emt 0:00:05]} 74. Kc7 {[%emt 0:00:25]} Nd5+ {[%emt 0:00:08]} 75. Kc8 {[%emt 0:00:24]} Ba6+ {[%emt 0:00:07]} 76. Kb8 {[%emt 0:00:08]} Kd7 {[%emt 0:00:06]} 77. Ka7 {[%emt 0:00:23]} Bc8 {[%emt 0:00:06]} 78. Kb8 {[%emt 0:00:04]} Kd8 {[%emt 0:00:05]} 79. Ka8 {[%emt 0:00:19]} Kc7 {[%emt 0:00:07]} 80. Ka7 {[%emt 0:00:04]} Ne7 {[%emt 0:00:08]} 0-1

[Event "Torneo Benidorm Gran Hotel Bali 2022"]
[Site "Benidorm, Spain"]
[Date "2022.12.09"]
[Round "8.1"]
[White "Davtyan, David Arm."]
[Black "Mingarro Carceller, Sergi"]
[Result "1-0"]
[ECO "D32"]
[WhiteElo "2329"]
[BlackElo "2330"]
[PlyCount "79"]
[EventDate "2022.12.03"]
[EventType "swiss"]
[EventRounds "9"]
[SourceTitle "Ajedrez en Madrid"]
[Source "lmi"]
[SourceDate "2022.12.03"]
[SourceVersion "1"]
[SourceVersionDate "2022.12.10"]
[SourceQuality "1"]
[TimeControl "90+30"]
[WhiteClock "0:16:55"]
[BlackClock "0:01:46"]

1. c4 {[%emt 0:00:00]} e6 {[%emt 0:00:00]} 2. Nc3 {[%emt 0:00:00]} d5 {[%emt 0:00:00]} 3. d4 {[%emt 0:00:00]} c5 {[%emt 0:00:00]} 4. cxd5 {[%emt 0:00:00]} cxd4 {[%emt 0:00:00]} 5. Qxd4 {[%emt 0:00:00]} Nc6 {[%emt 0:00:00]} 6. Qd1 {[%emt 0:00:00]} exd5 {[%emt 0:00:00]} 7. Qxd5 {[%emt 0:00:00]} Bd6 {[%emt 0:00:00]} 8. Bg5 {[%emt 0:00:00]} Nge7 {[%emt 0:00:00]} 9. Qd2 {[%emt 0:00:00]} h6 {[%emt 0:00:00]} 10. O-O-O {[%emt 0:00:00]} hxg5 {[%emt 0:00:00]} 11. Qxd6 {[%emt 0:00:00]} Qa5 {[%emt 0:00:00]} 12. Nf3 {[%emt 0:00:00]} Be6 {[%emt 0:00:00]} 13. Qa3 {[%emt 0:00:00]} Qxa3 {[%emt 0:00:00]} 14. bxa3 {[%emt 0:00:00]} Rh5 {[%emt 0:00:00]} 15. e3 {[%emt 0:00:00]} g4 {[%emt 0:00:00]} 16. Nd2 {[%emt 0:00:00]} O-O-O {[%emt 0:00:00]} 17. Be2 {[%emt 0:00:00]} Rdh8 {[%emt 0:00:00]} 18. h3 {[%emt 0:00:00]} R5h6 {[%emt 0:00:00]} 19. Nde4 {[%emt 0:00:00]} gxh3 {[%emt 0:00:00]} 20. gxh3 {[%emt 0:00:00]} Bxh3 {[%emt 0:00:00]} 21. Nd6+ {[%emt 0:00:00]} Rxd6 {[%emt 0:00:00]} 22. Rxd6 {[%emt 0:00:00]} Kc7 {[%emt 0:00:00]} 23. Rdd1 {[%emt 0:00:00]} Rh6 {[%emt 0:00:00]} 24. e4 {[%emt 0:00:00]} Ne5 {[%emt 0:00:00]} 25. Nb5+ {[%emt 0:00:00]} Kb6 {[%emt 0:00:00]} 26. Rd6+ {[%emt 0:00:00]} Rxd6 {[%emt 0:00:00]} 27. Nxd6 {[%emt 0:00:00]} Be6 {[%emt 0:00:16]} 28. f4 {[%emt 0:00:00]} N5c6 {[%emt 0:00:22]} 29. f5 {[%emt 0:00:00]} Bxa2 {[%emt 0:01:04]} 30. Kb2 {[%emt 0:00:00]} Nd4 {[%emt 0:00:17]} 31. Bd3 {[%emt 0:00:00]} Kc6 {[%emt 0:00:49]} 32. Ne8 {[%emt 0:00:00]} Bb3 {[%emt 0:00:21]} 33. Kc3 {[%emt 0:00:00]} Kc5 {[%emt 0:01:37]} 34. Nxg7 {[%emt 0:00:00]} Nec6 {[%emt 0:01:09]} 35. Nh5 {[%emt 0:00:00]} Ne5 {[%emt 0:02:15]} 36. Nf4 {[%emt 0:00:00]} Ba4 {[%emt 0:01:05]} 37. Bc4 {[%emt 0:00:50]} b5 {[%emt 0:05:25]} 38. Bxf7 {[%emt 0:00:33]} Ndf3 {[%emt 0:02:37]} 39. Rh6 {[%emt 0:02:51]} Nc6 {[%emt 0:01:57]} 40. Nd3+ {[%emt 0:00:21]} 1-0

[Event "Torneo Benidorm Gran Hotel Bali 2022"]
[Site "Benidorm, Spain"]
[Date "2022.12.09"]
[Round "8.2"]
[White "Md, Imran"]
[Black "Korneev, Oleg"]
[Result "1/2-1/2"]
[ECO "D02"]
[WhiteElo "2279"]
[BlackElo "2481"]
[PlyCount "148"]
[EventDate "2022.12.03"]
[EventType "swiss"]
[EventRounds "9"]
[SourceTitle "Ajedrez en Madrid"]
[Source "lmi"]
[SourceDate "2022.12.03"]
[SourceVersion "1"]
[SourceVersionDate "2022.12.10"]
[SourceQuality "1"]
[TimeControl "90+30"]
[WhiteClock "0:43:32"]
[BlackClock "0:06:15"]

1. d4 {[%emt 0:00:00]} d5 {[%emt 0:00:00]} 2. Bf4 {[%emt 0:00:00]} Nf6 {[%emt 0:00:00]} 3. Nf3 {[%emt 0:00:00]} e6 {[%emt 0:00:00]} 4. Nbd2 {[%emt 0:00:00]} Bd6 {[%emt 0:00:00]} 5. e3 {[%emt 0:00:00]} O-O {[%emt 0:00:00]} 6. Bd3 {[%emt 0:00:00]} c5 {[%emt 0:00:00]} 7. dxc5 {[%emt 0:00:00]} Bxf4 {[%emt 0:00:00]} 8. exf4 {[%emt 0:00:00]} Qc7 {[%emt 0:00:00]} 9. g3 {[%emt 0:00:00]} a5 {[%emt 0:00:00]} 10. a3 {[%emt 0:00:00]} Qxc5 {[%emt 0:00:00]} 11. O-O {[%emt 0:00:00]} b6 {[%emt 0:00:00]} 12. Qe2 {[%emt 0:00:00]} Ba6 {[%emt 0:00:00]} 13. Nb3 {[%emt 0:00:00]} Qc8 {[%emt 0:00:00]} 14. Rac1 {[%emt 0:00:00]} Nbd7 {[%emt 0:00:00]} 15. Nbd4 {[%emt 0:00:00]} Qb7 {[%emt 0:00:00]} 16. f5 {[%emt 0:00:00]} exf5 {[%emt 0:00:00]} 17. Bxa6 {[%emt 0:00:00]} Qxa6 {[%emt 0:00:00]} 18. Qxa6 {[%emt 0:00:00]} Rxa6 {[%emt 0:00:00]} 19. Nxf5 {[%emt 0:00:00]} a4 {[%emt 0:00:00]} 20. Rfd1 {[%emt 0:00:00]} Ra5 {[%emt 0:00:00]} 21. Ne7+ {[%emt 0:00:00]} Kh8 {[%emt 0:00:00]} 22. Nc6 {[%emt 0:00:00]} Rc5 {[%emt 0:00:00]} 23. Nb4 {[%emt 0:00:00]} g6 {[%emt 0:00:00]} 24. Rd4 {[%emt 0:00:00]} b5 {[%emt 0:00:00]} 25. Re1 {[%emt 0:00:00]} Kg8 {[%emt 0:00:00]} 26. Re7 {[%emt 0:00:00]} Rd8 {[%emt 0:00:00]} 27. g4 {[%emt 0:00:00]} Kf8 {[%emt 0:00:00]} 28. Re2 {[%emt 0:00:00]} h6 {[%emt 0:00:41]} 29. h4 {[%emt 0:00:00]} Nb6 {[%emt 0:00:31]} 30. Rf4 {[%emt 0:00:00]} Nbd7 {[%emt 0:07:30]} 31. Nd4 {[%emt 0:00:00]} Re8 {[%emt 0:00:12]} 32. Rxe8+ {[%emt 0:00:00]} Kxe8 {[%emt 0:00:01]} 33. Nd3 {[%emt 0:00:00]} Rc8 {[%emt 0:03:59]} 34. Nxb5 {[%emt 0:00:00]} Rxc2 {[%emt 0:00:26]} 35. Rxa4 {[%emt 0:00:00]} Ke7 {[%emt 0:02:51]} 36. Rd4 {[%emt 0:00:00]} Nf8 {[%emt 0:02:12]} 37. g5 {[%emt 0:00:00]} hxg5 {[%emt 0:00:00]} 38. hxg5 {[%emt 0:00:00]} Ne4 {[%emt 0:00:15]} 39. Rxd5 {[%emt 0:00:00]} Ne6 {[%emt 0:00:01]} 40. a4 {[%emt 0:00:00]} N4xg5 {[%emt 0:00:04]} 41. Kg2 {[%emt 0:00:00]} Rxb2 {[%emt 0:00:33]} 42. a5 {[%emt 0:00:00]} Ra2 {[%emt 0:00:08]} 43. Na7 {[%emt 0:00:00]} Ne4 {[%emt 0:00:19]} 44. Nc6+ {[%emt 0:00:00]} Kf6 {[%emt 0:00:04]} 45. Ncb4 {[%emt 0:00:00]} Ra3 {[%emt 0:00:27]} 46. a6 {[%emt 0:00:00]} Nc7 {[%emt 0:02:17]} 47. Rd4 {[%emt 0:00:00]} Ng5 {[%emt 0:01:52]} 48. Rd6+ {[%emt 0:00:00]} Nge6 {[%emt 0:00:01]} 49. Rb6 {[%emt 0:00:00]} Kf5 {[%emt 0:00:43]} 50. Rc6 {[%emt 0:00:00]} g5 {[%emt 0:00:29]} 51. Kh2 {[%emt 0:00:00]} Ke4 {[%emt 0:00:38]} 52. Ne1 {[%emt 0:00:00]} Ra1 {[%emt 0:00:25]} 53. Nec2 {[%emt 0:00:00]} Ra4 {[%emt 0:00:42]} 54. Kg3 {[%emt 0:00:00]} Ke5 {[%emt 0:00:31]} 55. Rb6 {[%emt 0:00:00]} Nd5 {[%emt 0:00:31]} 56. Rb7 {[%emt 0:00:00]} Nxb4 {[%emt 0:00:20]} 57. Nxb4 {[%emt 0:00:00]} Ra3+ {[%emt 0:00:27]} 58. f3 {[%emt 0:00:00]} Nc5 {[%emt 0:00:31]} 59. Rxf7 {[%emt 0:00:00]} Nxa6 {[%emt 0:00:19]} 60. Ra7 {[%emt 0:00:00]} Rxf3+ {[%emt 0:00:17]} 61. Kxf3 {[%emt 0:00:00]} Nxb4 {[%emt 0:00:02]} 62. Kg4 {[%emt 0:00:00]} Nd5 {[%emt 0:00:09]} 63. Kxg5 {[%emt 0:00:00]} Ke4 {[%emt 0:00:09]} 64. Ra4+ {[%emt 0:00:00]} Ke5 {[%emt 0:00:04]} 65. Ra8 {[%emt 0:00:00]} Ke4 {[%emt 0:00:14]} 66. Re8+ {[%emt 0:00:00]} Kd4 {[%emt 0:00:04]} 67. Kf5 {[%emt 0:00:00]} Ne3+ {[%emt 0:00:06]} 68. Kf4 {[%emt 0:00:00]} Nd5+ {[%emt 0:00:06]} 69. Kf3 {[%emt 0:00:00]} Nf6 {[%emt 0:00:16]} 70. Re6 {[%emt 0:00:00]} Nd5 {[%emt 0:00:05]} 71. Re4+ {[%emt 0:00:00]} Kd3 {[%emt 0:00:31]} 72. Re6 {[%emt 0:00:00]} Kd4 {[%emt 0:00:03]} 73. Re4+ {[%emt 0:00:00]} Kd3 {[%emt 0:00:02]} 74. Re6 {[%emt 0:00:00]} Kd4 {[%emt 0:00:07]} 1/2-1/2

[Event "Torneo Benidorm Gran Hotel Bali 2022"]
[Site "Benidorm, Spain"]
[Date "2022.12.09"]
[Round "8.3"]
[White "Granero Roca, Antonio"]
[Black "Aditya, Varun Gampa"]
[Result "0-1"]
[ECO "D27"]
[WhiteElo "2345"]
[BlackElo "2249"]
[PlyCount "122"]
[EventDate "2022.12.03"]
[EventType "swiss"]
[EventRounds "9"]
[SourceTitle "Ajedrez en Madrid"]
[Source "lmi"]
[SourceDate "2022.12.03"]
[SourceVersion "1"]
[SourceVersionDate "2022.12.10"]
[SourceQuality "1"]
[TimeControl "90+30"]
[WhiteClock "0:22:07"]
[BlackClock "0:13:29"]

1. d4 {[%emt 0:00:00]} Nf6 {[%emt 0:00:00]} 2. c4 {[%emt 0:00:00]} e6 {[%emt 0:00:00]} 3. Nf3 {[%emt 0:00:00]} d5 {[%emt 0:00:00]} 4. Nc3 {[%emt 0:00:00]} dxc4 {[%emt 0:00:00]} 5. e3 {[%emt 0:00:00]} a6 {[%emt 0:00:00]} 6. Bxc4 {[%emt 0:00:00]} b5 {[%emt 0:00:00]} 7. Bd3 {[%emt 0:00:00]} Bb7 {[%emt 0:00:00]} 8. Qe2 {[%emt 0:00:00]} c5 {[%emt 0:00:00]} 9. dxc5 {[%emt 0:00:00]} Bxc5 {[%emt 0:00:00]} 10. O-O {[%emt 0:00:00]} Nbd7 {[%emt 0:00:00]} 11. e4 {[%emt 0:00:00]} O-O {[%emt 0:00:00]} 12. e5 {[%emt 0:00:00]} Bxf3 {[%emt 0:00:00]} 13. gxf3 {[%emt 0:00:00]} Nh5 {[%emt 0:00:00]} 14. Qe4 {[%emt 0:00:00]} g6 {[%emt 0:00:00]} 15. Bh6 {[%emt 0:00:00]} Re8 {[%emt 0:00:00]} 16. Rad1 {[%emt 0:00:00]} Qc7 {[%emt 0:00:00]} 17. f4 {[%emt 0:00:00]} Rad8 {[%emt 0:00:00]} 18. Be2 {[%emt 0:00:00]} Ng7 {[%emt 0:00:00]} 19. Bg5 {[%emt 0:00:00]} Be7 {[%emt 0:00:00]} 20. Bxe7 {[%emt 0:00:00]} Rxe7 {[%emt 0:00:00]} 21. Qb4 {[%emt 0:00:00]} Nb6 {[%emt 0:00:00]} 22. Rxd8+ {[%emt 0:00:00]} Qxd8 {[%emt 0:00:00]} 23. Qa5 {[%emt 0:00:00]} Nf5 {[%emt 0:00:00]} 24. Rd1 {[%emt 0:00:00]} Nd4 {[%emt 0:00:00]} 25. Kf1 {[%emt 0:00:00]} Qa8 {[%emt 0:00:00]} 26. f3 {[%emt 0:00:00]} Nc4 {[%emt 0:00:00]} 27. Bxc4 {[%emt 0:00:00]} Qxf3+ {[%emt 0:00:00]} 28. Kg1 {[%emt 0:00:00]} Qe3+ {[%emt 0:00:00]} 29. Kg2 {[%emt 0:00:00]} Kg7 {[%emt 0:00:00]} 30. Qd8 {[%emt 0:00:00]} Nf5 {[%emt 0:00:00]} 31. Be2 {[%emt 0:00:00]} b4 {[%emt 0:00:00]} 32. Rd3 {[%emt 0:00:00]} Qxf4 {[%emt 0:00:00]} 33. Nd1 {[%emt 0:00:00]} Qxe5 {[%emt 0:00:00]} 34. Bf1 {[%emt 0:00:00]} Rc7 {[%emt 0:00:00]} 35. Rd2 {[%emt 0:00:00]} Qf4 {[%emt 0:00:30]} 36. Kg1 {[%emt 0:00:00]} Rc5 {[%emt 0:01:57]} 37. Rf2 {[%emt 0:00:00]} Qg4+ {[%emt 0:01:45]} 38. Rg2 {[%emt 0:00:00]} Qe4 {[%emt 0:00:55]} 39. Nf2 {[%emt 0:00:00]} Qe3 {[%emt 0:01:13]} 40. Qd3 {[%emt 0:00:00]} Rc1 {[%emt 0:00:04]} 41. Rg4 {[%emt 0:01:44]} b3 {[%emt 0:04:31]} 42. axb3 {[%emt 0:00:54]} Qxd3 {[%emt 0:00:23]} 43. Nxd3 {[%emt 0:01:05]} Rxf1+ {[%emt 0:00:01]} 44. Kxf1 {[%emt 0:00:13]} Ne3+ {[%emt 0:00:01]} 45. Kg1 {[%emt 0:00:20]} Nxg4 {[%emt 0:00:04]} 46. Nb4 {[%emt 0:00:05]} Ne5 {[%emt 0:01:04]} 47. Nxa6 {[%emt 0:00:14]} Nd3 {[%emt 0:00:54]} 48. b4 {[%emt 0:00:09]} Nxb2 {[%emt 0:00:33]} 49. Nc5 {[%emt 0:00:30]} Kf6 {[%emt 0:00:40]} 50. b5 {[%emt 0:00:06]} Nc4 {[%emt 0:00:45]} 51. Kf2 {[%emt 0:01:04]} Ke7 {[%emt 0:00:14]} 52. Kf3 {[%emt 0:00:18]} f5 {[%emt 0:00:23]} 53. Kf4 {[%emt 0:00:50]} h6 {[%emt 0:00:49]} 54. h4 {[%emt 0:00:07]} e5+ {[%emt 0:00:06]} 55. Kf3 {[%emt 0:00:09]} g5 {[%emt 0:00:08]} 56. h5 {[%emt 0:00:13]} e4+ {[%emt 0:00:24]} 57. Ke2 {[%emt 0:00:12]} g4 {[%emt 0:00:17]} 58. Nb3 {[%emt 0:00:33]} f4 {[%emt 0:00:14]} 59. Nd4 {[%emt 0:00:04]} f3+ {[%emt 0:00:07]} 60. Ke1 {[%emt 0:00:23]} Kf6 {[%emt 0:00:16]} 61. Nc2 {[%emt 0:00:40]} g3 {[%emt 0:00:13]} 0-1